bitfinex-derivatives/quotes_ETHF0:USTF0_20250115
["timestamp","ask_amount","ask_price","bid_price","bid_amount"]
[1736934618215,0.31205,3205.7,3205.3,3.2078]
[1736934618418,3.51985,3205.8,3205.3,3.2078]
[1736934618611,0.2206464,3205.6,3205.3,3.2078]
[1736934619011,0.31205,3205.7,3205.3,3.2078]
[1736934619218,3.63132958,3205.7,3205.3,3.2078]
[1736934619418,3.31927958,3205.7,3205.3,3.2078]
[1736934619818,3.31927958,3205.7,3205.4,0.31207]
[1736934620016,3.31927958,3205.7,3205.4,0.78547]
[1736934620212,3.31927958,3205.7,3205.5,0.4537]
[1736934620618,3.63132958,3205.7,3205.5,0.4537]
[1736934620811,3.31927958,3205.7,3205.5,0.76576]
[1736934621014,0.31203,3205.9,3205.5,0.76576]
[1736934621418,6.20090603,3206.2,3205.5,0.76576]
[1736934621419,6.20090603,3206.2,3205.6,0.31206]
[1736934621618,6.20090603,3206.2,3205.5,0.4537]
[1736934621619,6.20090603,3206.2,3205.7,0.31205]
[1736934621818,0.31202,3206.0,3205.6,0.31206]
[1736934622113,0.31195,3206.8,3206.4,0.31198]
[1736934622314,0.31196,3206.7,3206.3,0.31199]
[1736934622618,3.75320417,3206.6,3206.4,0.4994]
[1736934622816,2.99310603,3207.0,3206.4,0.4994]
[1736934623013,0.31197,3206.5,3206.4,0.4994]
[1736934624023,3.44123417,3206.9,3206.4,0.4994]
[1736934624217,0.31195,3206.7,3206.4,0.4994]
[1736934624423,0.31194,3206.9,3206.4,0.81138]
[1736934624617,3.26631372,3207.1,3206.4,0.9659]
[1736934624924,3.26631372,3207.2,3206.4,0.9659]
[1736934625222,3.2078,3207.4,3206.4,0.9659]
[1736934625422,0.31193,3206.9,3206.5,0.31197]
[1736934625722,3.2078,3207.4,3206.4,0.9659]
[1736934626021,0.31195,3206.8,3206.4,1.27788]
[1736934626321,0.31196,3206.6,3206.4,0.9659]
[1736934626623,0.31196,3206.7,3206.4,1.27788]
[1736934626814,0.31196,3206.6,3206.4,0.9659]
[1736934627117,0.31196,3206.6,3206.4,1.27788]
[1736934627320,0.31197,3206.5,3206.4,0.9659]
[1736934627821,0.31197,3206.5,3206.4,0.4994]
[1736934628008,0.31197,3206.5,3205.9,0.31202]
[1736934628009,3.2078,3206.6,3205.8,3.2078]
[1736934628212,0.31203,3205.9,3205.8,3.679]
[1736934628414,3.2078,3206.6,3205.8,3.679]
[1736934628625,0.312,3206.3,3205.9,0.31202]
[1736934628825,3.47886995,3206.5,3205.9,0.31202]
[1736934629011,0.31201,3206.1,3205.8,3.99103]
[1736934629216,0.31201,3206.1,3205.8,3.679]
[1736934629516,0.31203,3205.9,3205.8,0.4712]
[1736934630022,3.2078,3206.2,3205.7,1.307]
[1736934630217,0.31204,3205.8,3205.7,1.307]
[1736934630409,3.2078,3206.2,3205.5,0.4724]
[1736934630410,0.31206,3205.6,3205.5,0.4724]
[1736934631323,0.31207,3205.5,3205.4,0.4712]
[1736934631618,3.46272165,3206.1,3205.4,0.4712]
[1736934631818,3.46272165,3206.1,3205.5,0.31207]
[1736934632014,0.31202,3206.0,3205.6,0.31205]
[1736934632213,3.77474165,3206.1,3205.7,0.31205]
[1736934632620,0.31203,3206.0,3205.5,0.31207]
[1736934632923,0.31202,3206.0,3205.5,0.31206]
[1736934633124,0.31203,3205.9,3205.6,0.31206]
[1736934634123,0.31203,3205.9,3205.4,0.4712]
[1736934634420,3.46272165,3206.1,3205.4,0.4712]
[1736934635117,3.5198,3206.2,3206.0,0.31202]
[1736934635325,3.2078,3206.2,3205.5,40.8]
[1736934635618,0.31201,3206.1,3205.5,40.8]
[1736934635995,0.31205,3205.7,3205.5,41.11206]
[1736934636130,0.31208,3205.4,3205.3,3.2078]
[1736934637720,0.31207,3205.5,3205.3,3.51988]
[1736934637913,0.3782,3205.9,3205.3,3.2078]
[1736934638119,6.20023351,3206.2,3205.4,0.31207]
[1736934638120,0.31205,3205.7,3205.4,0.31207]
[1736934638524,0.31205,3205.7,3205.3,3.2078]
[1736934638720,3.33952536,3206.1,3205.4,0.4695]
[1736934638915,3.33952536,3206.1,3205.5,0.31206]
[1736934638916,0.31204,3205.8,3205.5,0.31206]
[1736934639116,6.65833351,3206.2,3205.4,0.9365]
[1736934639419,3.33952536,3205.7,3205.6,0.31205]
[1736934639619,0.31203,3205.9,3205.6,0.31205]
[1736934639823,6.65833351,3206.2,3205.6,0.31205]
[1736934640021,3.30596209,3205.7,3205.6,0.31205]
[1736934640226,3.61799209,3205.9,3205.6,0.31205]
[1736934640429,0.31203,3205.9,3205.6,0.31205]
[1736934640821,3.33827974,3205.8,3205.6,0.31205]
[1736934641331,3.65031974,3205.8,3205.5,0.31206]
[1736934641719,3.60122228,3206.1,3205.7,3.2078]
[1736934642030,3.2078,3206.6,3206.4,0.31197]
[1736934642230,3.2078,3206.6,3206.5,0.31197]
[1736934642424,3.60122228,3206.5,3206.3,0.31198]
[1736934642625,7.08510078,3206.6,3206.4,0.31198]
[1736934642829,3.51976,3206.6,3206.4,0.31198]
[1736934643127,3.56534078,3206.5,3206.4,0.31198]
[1736934644430,1.09197,3206.3,3205.5,0.31207]
[1736934644629,6.20023351,3206.0,3205.3,3.2078]
[1736934644830,0.31207,3205.5,3205.3,3.2078]
[1736934645031,0.31206,3205.6,3205.3,3.2078]
[1736934645228,3.29400515,3205.9,3205.3,3.2078]
[1736934645529,3.42410429,3205.5,3205.4,0.31207]
[1736934645733,0.31205,3205.7,3205.4,0.31207]
[1736934645926,3.2078,3206.0,3205.4,0.31207]
[1736934646128,0.31206,3205.6,3205.3,3.51988]
[1736934646329,3.43605483,3205.9,3205.3,3.51988]
[1736934646525,0.31208,3205.4,3205.3,3.2078]
[1736934646827,3.77946748,3205.4,3205.3,3.2078]
[1736934647432,3.46738748,3205.4,3205.0,3.0]
[1736934647626,0.31211,3205.1,3205.0,3.0]
[1736934648035,3.59871103,3205.1,3205.0,3.0]
[1736934649034,3.28660103,3205.1,3205.0,3.0]
[1736934649330,3.59871103,3205.1,3205.0,3.0]
[1736934650437,3.28660103,3205.1,3205.0,3.0]
[1736934650734,3.59871103,3205.1,3205.0,3.0]
[1736934651128,8.97701103,3205.1,3205.0,2.6217]
[1736934652331,8.97701103,3205.1,3205.0,1.53317]
[1736934652539,0.3122,3204.2,3203.7,0.80994]
[1736934652728,0.31221,3204.1,3203.7,0.80994]
[1736934652925,3.93373212,3204.1,3203.7,0.4977]
[1736934653128,3.62152212,3204.1,3203.6,3.2078]
[1736934653332,6.20023351,3204.3,3203.2,3.2078]
[1736934653639,3.48940722,3204.2,3203.2,3.2078]
[1736934653940,6.20023351,3204.3,3203.9,0.31222]
[1736934654235,3.48940722,3204.2,3203.7,3.2078]
[1736934654433,3.48940722,3204.2,3203.9,0.31222]
[1736934654628,3.48940722,3204.2,3203.8,0.9502]
[1736934654831,3.48940722,3204.2,3204.0,0.31221]
[1736934655139,3.48940722,3204.2,3203.8,0.9502]
[1736934655336,3.2078,3203.9,3202.8,3.2078]
[1736934655536,8.48940722,3204.2,3202.7,7.3241833]
[1736934655537,0.31233,3202.8,3202.7,7.3241833]
[1736934655836,0.31234,3202.7,3202.6,2.78989141]
[1736934656135,6.56430834,3202.7,3202.6,2.78989141]
[1736934656333,6.56430834,3202.7,3202.6,2.78829141]
[1736934656535,6.20023351,3203.1,3202.4,18.34232916]
[1736934656736,1.307,3203.7,3202.4,18.34232916]
[1736934656737,0.31236,3202.5,3202.4,15.13452916]
[1736934656940,2.99243351,3202.6,3202.4,15.13452916]
[1736934657137,3.2078,3202.8,3202.4,15.13452916]
[1736934657445,2.99243351,3203.0,3202.4,15.13452916]
[1736934657446,3.5844104,3202.5,3202.4,2.09771311]
[1736934657738,6.20023351,3203.8,3202.4,10.30551311]
[1736934657932,6.20023351,3203.8,3202.8,3.2078]
[1736934658135,3.3516434,3203.2,3203.0,0.31231]
[1736934658336,3.3516434,3203.6,3202.8,3.2078]
[1736934658549,0.31229,3203.3,3202.6,0.31234]
[1736934658735,3.2078,3203.7,3202.6,3.2078]
[1736934658736,0.31227,3203.5,3202.6,3.2078]
[1736934658938,0.31228,3203.4,3202.6,3.2078]
[1736934659140,3.83545583,3203.4,3203.3,40.8]
[1736934659336,0.31227,3203.5,3203.3,40.8]
[1736934659538,3.2078,3203.7,3203.3,40.8]
[1736934659734,3.60005749,3203.4,3203.3,40.8]
[1736934660033,0.31227,3203.5,3203.3,40.8]
[1736934660240,3.60005749,3203.4,3203.3,40.8]
[1736934660546,0.31225,3203.6,3203.3,40.8]
[1736934660745,3.92643223,3203.6,3203.3,40.8]
[1736934660939,0.31225,3203.6,3203.3,40.8]
[1736934661135,3.61417223,3203.5,3203.3,40.8]
[1736934661540,3.92644223,3203.5,3203.3,40.8]
[1736934661846,0.31226,3203.6,3203.3,40.8]
[1736934662037,3.2555385,3203.6,3203.3,40.8]
[1736934662241,3.2555385,3203.4,3203.3,40.8]
[1736934662541,3.50914649,3203.6,3203.3,40.8]
[1736934662742,3.2078,3203.7,3203.3,40.8]
[1736934662948,6.20023351,3203.4,3202.1,3.2078]
[1736934663142,0.31236,3202.5,3202.1,3.2078]
[1736934663540,3.63509107,3202.5,3202.1,3.2078]
[1736934663736,3.32273107,3202.5,3202.2,0.31239]
[1736934664044,3.2078,3203.0,3202.7,0.31234]
[1736934664348,3.2078,3203.0,3202.8,0.463]
[1736934664847,3.2078,3203.0,3202.9,40.8]
[1736934665051,3.2078,3203.0,3202.8,0.463]
[1736934665447,6.20023351,3203.5,3202.9,0.31231]
[1736934665642,6.20023351,3203.5,3202.9,40.8]
[1736934665850,3.64579569,3203.4,3202.9,40.8]
[1736934666148,3.64579569,3203.4,3202.9,41.11231]
[1736934666349,3.64579569,3203.4,3202.9,40.8]
[1736934666548,3.33352569,3203.4,3202.9,41.11232]
[1736934666748,3.33352569,3203.4,3203.0,0.31231]
[1736934666948,3.33352569,3203.4,3202.9,40.8]
[1736934667254,3.64579569,3203.4,3202.9,40.8]
[1736934667455,3.64579569,3203.4,3202.9,41.11232]
[1736934667848,3.33352569,3203.4,3203.0,0.31231]
[1736934668056,3.33352569,3203.4,3203.1,0.3123]
[1736934668255,3.33352569,3203.4,3203.3,0.31228]
[1736934668756,3.33352569,3203.4,3203.1,0.31229]
[1736934668958,3.33352569,3203.4,3203.3,0.31228]
[1736934669455,3.33352569,3203.4,3203.0,3.2078]
[1736934669456,3.52003,3203.9,3203.5,0.31225]
[1736934669656,3.2078,3203.9,3203.6,0.4902]
[1736934669855,3.2078,3203.9,3203.6,0.80245]
[1736934670056,3.2078,3203.9,3203.7,0.9789]
[1736934670252,3.2078,3203.9,3203.7,1.29114]
[1736934670559,0.3122,3204.2,3203.7,1.29114]
[1736934670750,6.20023351,3204.0,3202.8,1.482]
[1736934670954,3.3888414,3203.8,3203.1,0.4683]
[1736934671248,3.67388017,3203.9,3203.5,0.31225]
[1736934671453,0.31223,3203.8,3203.3,0.31227]
[1736934671651,0.31226,3203.5,3203.1,0.78059]
[1736934671850,3.2078,3204.0,3203.3,0.31227]
[1736934671851,3.27976468,3203.7,3203.3,0.31227]
[1736934672150,0.31225,3203.7,3203.3,0.31228]
[1736934672355,3.2078,3204.0,3203.1,0.4683]
[1736934672557,3.2078,3204.0,3203.8,0.31223]
[1736934672745,0.31226,3203.6,3203.4,3.2078]
[1736934673149,3.28863444,3203.9,3203.4,3.2078]
[1736934673453,3.60089444,3203.5,3203.4,3.2078]
[1736934673751,2.99243351,3203.7,3203.4,3.2078]
[1736934674054,3.44756462,3203.5,3203.4,3.52007]
[1736934674242,3.52002,3204.0,3203.8,0.31223]
[1736934674243,3.2078,3204.0,3203.8,0.31223]
[1736934674443,3.44756462,3203.9,3203.8,0.31223]
[1736934674643,3.2078,3204.4,3203.9,0.31222]
[1736934674842,3.2078,3204.4,3204.0,0.4578]
[1736934675047,3.33568225,3204.3,3204.0,0.4578]
[1736934675256,3.2078,3204.4,3204.0,0.4578]
[1736934675457,0.3122,3204.1,3204.0,0.4578]
[1736934675954,0.31222,3204.0,3203.6,0.31225]
[1736934676154,3.2078,3203.9,3203.6,0.31225]
[1736934676652,3.2078,3203.9,3203.5,0.4874]
[1736934676851,3.2078,3203.9,3203.7,0.31224]
[1736934677558,0.31225,3203.7,3203.5,0.4874]
[1736934677752,3.2078,3203.9,3203.5,0.4874]
[1736934677753,3.83267735,3203.8,3203.5,0.79966]
[1736934677951,3.52043735,3203.8,3203.5,0.79966]
[1736934678152,0.31226,3203.5,3203.4,0.4578]
[1736934678451,0.31229,3203.2,3202.9,4.02112]
[1736934679352,2.99243351,3203.7,3202.9,4.02112]
[1736934679353,0.31225,3203.6,3203.1,0.3123]
[1736934679651,3.2078,3203.5,3202.9,0.501]
[1736934679958,0.31233,3202.9,3202.6,0.31235]
[1736934680353,0.31231,3203.1,3202.8,0.31233]
[1736934680656,3.46037657,3203.0,3202.8,0.31233]
[1736934681353,3.46037657,3203.0,3202.5,3.6908]
[1736934681751,3.77269657,3203.0,3202.7,0.31233]
[1736934682257,3.46037657,3203.0,3202.5,3.6908]
[1736934682452,0.31235,3202.7,3202.5,3.6908]
[1736934682654,0.31234,3202.7,3202.5,4.00316]
[1736934682850,3.46037657,3203.0,3202.5,3.6908]
[1736934683055,0.31235,3202.6,3202.5,3.6908]
[1736934683257,3.64208812,3202.6,3202.5,3.2078]
[1736934683565,0.31235,3202.6,3202.5,3.2078]
[1736934683765,3.56478693,3202.6,3202.5,3.2078]
[1736934684562,3.25243693,3202.6,3202.4,42.89771311]
[1736934684752,0.31236,3202.5,3202.4,42.89771311]
[1736934685154,3.58564983,3202.5,3202.4,42.89771311]
[1736934685557,0.31236,3202.5,3202.4,42.89771311]
[1736934685761,3.89800983,3202.6,3202.4,42.89771311]
[1736934685955,3.56062963,3202.5,3202.4,42.89771311]
[1736934686357,6.86542314,3202.5,3202.4,2.09771311]
[1736934686557,3.2078,3202.7,3202.4,2.09771311]
[1736934686558,3.56062963,3202.6,3202.4,2.09771311]
[1736934686757,6.73849202,3202.5,3202.4,2.09771311]
[1736934687056,3.30479351,3202.5,3202.4,2.09771311]
[1736934687253,7.99243351,3202.5,3201.0,3.2078]
[1736934687454,7.99243351,3202.5,3200.3,7.63288516]
[1736934687455,0.31251,3201.0,3200.3,7.63288516]
[1736934687756,2.99243351,3200.4,3200.3,7.32031516]
[1736934687955,3.30499351,3200.4,3200.3,7.32031516]
[1736934688256,6.29691656,3200.4,3200.3,7.32031516]
[1736934688568,3.30448305,3200.4,3200.3,7.32031516]
[1736934689062,0.31248,3201.3,3200.1,2.99243351]
[1736934689263,2.99243351,3201.2,3200.5,3.2078]
[1736934689453,2.99243351,3201.2,3200.2,1.00358961]
[1736934689454,3.49788163,3200.7,3200.2,1.00358961]
[1736934689658,3.8568,3201.2,3200.8,0.31252]
[1736934689864,3.2078,3201.2,3200.7,0.31253]
[1736934690064,3.53034407,3201.1,3200.7,0.31253]
[1736934690361,3.53034407,3201.1,3200.8,40.8]
[1736934690665,6.20023351,3201.6,3200.8,40.8]
[1736934690962,3.34308893,3201.5,3200.9,3.2078]
[1736934691157,3.65554893,3201.5,3200.9,0.31251]
[1736934691359,3.34308893,3201.5,3200.8,40.8]
[1736934691560,3.65554893,3201.5,3201.0,0.3125]
[1736934691764,3.65554893,3201.5,3201.0,3.2078]
[1736934692057,0.31247,3201.4,3200.9,0.4861]
[1736934692263,3.65554893,3201.5,3200.9,0.79861]
[1736934692864,0.31247,3201.4,3200.9,0.79861]
[1736934693456,2.99243351,3201.3,3200.8,40.8]
[1736934693654,2.99243351,3201.0,3200.6,3.2078]
[1736934693861,2.99243351,3201.0,3200.6,3.52034]
[1736934694167,3.41644579,3200.9,3200.6,3.52034]
[1736934694363,3.30494351,3201.0,3200.6,3.52034]
[1736934694563,2.99243351,3201.0,3200.6,3.2078]
[1736934694760,3.86286223,3200.9,3200.6,3.2078]
[1736934694962,0.31253,3200.7,3200.6,3.2078]
[1736934695462,3.55034223,3200.7,3200.3,40.8]
[1736934695670,2.99243351,3200.4,3200.3,40.8]
[1736934695869,0.31255,3200.6,3200.3,40.8]
[1736934696074,3.28559814,3200.4,3200.3,40.8]
[1736934696259,0.31256,3200.5,3200.3,40.8]
[1736934696670,3.75626247,3200.4,3200.3,40.8]
[1736934697066,3.44370247,3200.7,3200.3,40.8]
[1736934697269,3.44370247,3200.4,3200.2,0.01628961]
[1736934697569,0.31255,3200.5,3200.2,0.01628961]
[1736934697772,0.31255,3200.5,3200.2,40.81628961]
[1736934698070,3.50679233,3200.4,3200.2,40.81628961]
[1736934698570,3.81935233,3200.5,3200.2,40.81628961]
[1736934698772,6.81178584,3200.5,3200.2,40.81628961]
[1736934699066,2.99243351,3200.5,3200.2,40.81628961]
[1736934699267,0.31255,3200.6,3200.2,41.12886961]
[1736934699473,3.3240837,3200.4,3200.3,0.31257]
[1736934699669,3.3240837,3200.4,3200.2,41.12886961]
[1736934699973,0.31254,3200.7,3200.3,0.31257]
[1736934700164,3.36400755,3200.3,3200.2,40.81628961]
[1736934700364,3.36400755,3200.3,3200.2,41.12886961]
[1736934700560,2.99243351,3200.5,3200.3,0.31257]
[1736934700970,6.51276351,3200.8,3200.4,0.31256]
[1736934701168,6.20023351,3200.8,3200.6,0.31254]
[1736934701368,3.48394055,3200.6,3200.5,0.79145]
[1736934701670,6.20023351,3200.8,3200.2,40.81628961]
[1736934701970,0.31257,3200.3,3200.2,0.01628961]
[1736934702170,2.99243351,3200.5,3200.2,0.01628961]
[1736934702371,3.90252925,3200.3,3200.2,0.01628961]
[1736934702673,0.31257,3200.3,3200.2,0.01628961]
[1736934702869,3.60984858,3200.3,3200.2,0.32886961]
[1736934703071,3.60984858,3200.3,3200.2,0.01628961]
[1736934703367,3.60984858,3200.4,3200.2,0.01628961]
[1736934703564,2.99243351,3200.5,3200.2,0.01628961]
[1736934703769,3.52037,3200.3,3200.2,0.01628961]
[1736934704168,7.08415852,3200.3,3200.2,0.01628961]
[1736934704675,11.77158852,3200.3,3199.6,3.78254]
[1736934704867,2.99243351,3199.7,3199.6,3.78254]
[1736934705067,2.99243351,3200.0,3199.6,4.09518]
[1736934705274,3.36933201,3199.7,3199.6,4.09518]
[1736934705467,3.36933201,3199.9,3199.6,4.09518]
[1736934705672,2.99243351,3200.0,3199.7,0.31263]
[1736934705876,6.19391643,3200.3,3200.0,0.3126]
[1736934706077,3.40795373,3199.9,3199.8,0.31262]
[1736934706270,3.40795373,3200.0,3199.9,0.31261]
[1736934706473,3.40795373,3200.2,3199.7,1.4584]
[1736934706671,2.99243351,3200.6,3200.4,0.31256]
[1736934706870,2.99243351,3200.6,3200.1,40.8]
[1736934707071,3.38248717,3200.5,3200.1,40.8]
[1736934707375,3.38248717,3200.5,3200.4,0.31256]
[1736934707674,3.38248717,3200.5,3200.1,40.8]
[1736934708073,3.38248717,3200.5,3200.2,0.31258]
[1736934708471,0.31258,3200.3,3200.1,40.8]
[1736934708679,0.31258,3200.2,3200.1,40.8]
[1736934708879,3.59521927,3200.2,3200.1,40.8]
[1736934709377,3.90779927,3200.2,3200.1,40.8]
[1736934709567,3.59521927,3200.2,3200.1,40.8]
[1736934709886,0.3126,3200.1,3199.8,0.31261]
[1736934710175,0.3126,3200.1,3199.9,40.8]
[1736934710383,3.34173895,3200.0,3199.9,40.8]
[1736934710573,3.34173895,3200.0,3199.9,41.11261]
[1736934710880,3.35032563,3200.2,3200.1,0.31259]
[1736934711180,3.52034,3200.7,3200.4,0.31256]
[1736934711373,3.2078,3200.7,3200.1,3.2078]
[1736934711573,3.2078,3201.1,3200.6,0.31254]
[1736934711772,0.31253,3200.8,3200.6,0.31254]
[1736934711968,3.44663402,3200.9,3200.6,0.31254]
[1736934712173,2.12370945,3200.7,3200.6,0.31254]
[1736934712373,3.75914402,3201.0,3200.1,3.2078]
[1736934712576,3.44663402,3200.8,3200.6,0.31254]
[1736934712775,3.52034,3200.7,3200.2,0.31258]
[1736934713075,3.6201318,3200.6,3200.1,3.2078]
[1736934713474,3.6201318,3200.6,3200.4,0.31256]
[1736934713777,3.6201318,3200.6,3200.5,0.31255]
[1736934713967,3.6201318,3200.6,3200.4,0.31256]
[1736934714179,3.45077883,3200.8,3200.1,3.2078]
[1736934714368,3.45077883,3200.6,3200.5,0.31255]
[1736934714973,3.2078,3201.6,3201.4,0.31246]
[1736934715180,3.2078,3201.6,3201.5,0.31246]
[1736934715382,0.31243,3201.8,3201.5,0.31246]
[1736934715774,3.32222793,3201.7,3200.9,3.2078]
[1736934716175,3.32222793,3201.8,3201.7,0.31244]
[1736934716379,3.2078,3202.0,3201.7,0.31244]
[1736934716676,3.32222793,3201.9,3201.8,0.31242]
[1736934716884,3.32222793,3201.9,3201.4,3.2078]
[1736934716885,3.2078,3202.0,3201.9,0.31242]
[1736934717983,3.2078,3202.5,3202.3,0.31238]
[1736934718279,3.2078,3202.5,3202.3,0.31237]
[1736934718484,3.2078,3202.9,3202.3,0.31237]
[1736934718681,0.31234,3202.7,3202.3,0.31237]
[1736934718878,0.31234,3202.7,3201.8,3.2078]
[1736934719073,3.33911698,3202.6,3202.4,0.31237]
[1736934719389,3.33911698,3202.6,3202.5,0.31236]
[1736934720183,3.33911698,3202.6,3202.5,41.11236]
[1736934720882,1.461,3203.5,3202.5,40.8]
[1736934720883,2.99243351,3203.4,3202.5,40.8]
[1736934721085,2.99243351,3203.4,3202.9,0.31231]
[1736934721280,6.60858138,3203.4,3202.9,0.31232]
[1736934721584,6.60858138,3203.4,3202.6,1.4526]
[1736934721773,6.92085138,3203.4,3203.1,0.3123]
[1736934721971,6.60858138,3203.4,3203.1,0.3123]
[1736934722177,3.61614787,3203.4,3202.7,0.31234]
[1736934722382,3.61614787,3203.4,3202.6,1.4526]
[1736934722685,3.52007,3203.5,3203.1,0.31229]
[1736934722885,3.384967,3203.4,3203.3,0.31228]
[1736934723479,3.2078,3203.5,3202.9,3.2078]
[1736934723776,3.2078,3203.5,3203.4,0.31227]
[1736934724882,3.2078,3203.5,3202.9,3.2078]
[1736934725188,0.31232,3202.9,3202.6,1.4526]
[1736934725579,3.2078,3203.1,3202.6,1.4526]
[1736934725790,3.2078,3203.1,3203.0,0.31231]
[1736934726285,3.2078,3203.1,3202.6,1.4526]
[1736934726286,3.52005,3203.7,3203.3,0.31228]
[1736934726588,3.46586296,3203.5,3203.2,0.31229]
[1736934726882,3.77812296,3203.5,3203.2,0.31229]
[1736934727084,3.46586296,3203.5,3203.2,0.31229]
[1736934727283,0.31227,3203.4,3203.1,0.3123]
[1736934727582,3.46586296,3203.5,3202.9,3.2078]
[1736934727886,0.31231,3203.1,3202.9,3.2078]
[1736934728383,2.99243351,3203.5,3202.9,3.2078]
[1736934728384,3.36983248,3203.0,3202.9,3.2078]
[1736934728584,3.36983248,3203.0,3202.7,0.31234]
[1736934728793,0.31231,3203.1,3202.7,0.31233]
[1736934728794,0.3123,3203.1,3202.7,0.31233]
[1736934729079,3.48515021,3203.0,3202.7,0.31233]
[1736934729787,0.31232,3202.9,3202.6,1.76494]
[1736934729987,3.79747021,3203.0,3202.7,0.31234]
[1736934730181,3.79747021,3203.0,3202.6,1.4526]
[1736934730182,3.48515021,3203.0,3202.8,0.31232]
[1736934730594,3.48515021,3203.0,3202.6,1.4526]
[1736934730886,3.2078,3203.3,3202.7,0.31234]
[1736934731086,3.2078,3203.3,3202.6,0.9768]
[1736934731277,0.31239,3202.3,3202.0,40.8]
[1736934731477,0.3124,3202.1,3201.8,0.31243]
[1736934731674,0.31242,3202.0,3201.7,0.31244]
[1736934731878,0.31242,3201.9,3201.6,4.01074]
[1736934732084,0.31242,3201.9,3201.7,40.8]
[1736934732282,6.20023351,3202.7,3201.7,40.8]
[1736934732586,3.44052655,3202.6,3201.7,41.11243]
[1736934732791,3.44052655,3202.6,3201.7,40.8]
[1736934733183,0.31237,3202.5,3202.2,0.31239]
[1736934733479,3.2078,3202.7,3201.7,40.8]
[1736934733682,3.80775059,3202.4,3202.1,0.3124]
[1736934733884,0.31239,3202.2,3201.9,0.31241]
[1736934734079,6.20023351,3202.7,3201.7,40.8]
[1736934734288,3.58359454,3202.3,3201.7,40.8]
[1736934734479,0.31239,3202.2,3201.9,0.31241]
[1736934735188,6.20023351,3202.7,3201.7,40.8]
[1736934735383,0.31238,3202.3,3202.1,0.3124]
[1736934735682,0.31239,3202.2,3201.7,40.8]
[1736934735881,0.78091,3202.5,3201.7,40.8]
[1736934736185,0.31244,3201.7,3201.6,3.2078]
[1736934736580,0.31244,3201.7,3201.6,44.0078]
[1736934738383,7.63623351,3202.3,3201.6,44.0078]
[1736934738688,3.48524948,3202.2,3201.6,3.2078]
[1736934738890,0.31243,3201.8,3201.6,3.2078]
[1736934739389,3.48524948,3201.7,3201.6,3.2078]
[1736934740688,3.48524948,3201.7,3201.6,3.52025]
[1736934740988,6.20023351,3202.3,3201.6,3.2078]
[1736934741388,0.31243,3201.9,3201.6,3.2078]
[1736934741583,0.3124,3202.1,3201.6,3.2078]
[1736934741785,0.31244,3201.7,3201.6,3.2078]
[1736934741988,0.31247,3201.4,3201.1,3.2078]
[1736934742181,6.20023351,3201.5,3201.1,3.2078]
[1736934742382,3.32669644,3201.3,3201.1,3.2078]
[1736934742579,3.63916644,3201.4,3201.1,44.3203]
[1736934742778,6.20023351,3201.5,3201.1,44.0078]
[1736934742992,3.2078,3201.5,3201.4,0.31247]
[1736934743798,0.31243,3201.8,3201.5,0.31245]
[1736934744186,3.39371171,3201.7,3201.2,0.9445]
[1736934744492,0.31245,3201.6,3201.2,0.9445]
[1736934744688,0.31245,3201.6,3201.2,1.25698]
[1736934744990,3.39371171,3201.8,3201.2,1.25698]
[1736934744991,0.31246,3201.5,3201.2,0.9445]
[1736934745293,0.31246,3201.5,3201.2,1.25698]
[1736934745490,2.99243351,3201.6,3201.2,0.4803]
[1736934745692,3.30498063,3201.4,3200.6,0.4946]
[1736934745994,0.31257,3200.3,3200.0,3.2078]
[1736934746292,0.31257,3200.4,3200.0,44.0078]
[1736934746491,0.31258,3200.3,3200.0,44.3204]
[1736934746690,3.93296369,3200.3,3200.0,44.3204]
[1736934746993,2.99243351,3200.8,3200.0,44.0078]
[1736934747196,0.31255,3200.6,3200.0,44.0078]
[1736934747389,3.57039972,3200.6,3200.5,0.31256]
[1736934747583,3.57039972,3200.7,3200.0,44.0078]
[1736934747789,2.99243351,3200.8,3200.6,0.31255]
[1736934748186,3.16717,3201.5,3200.6,0.31255]
[1736934748187,3.25426875,3200.7,3200.6,0.31255]
[1736934748389,3.2078,3201.4,3200.6,0.31255]
[1736934748600,6.46206875,3201.4,3200.9,3.2078]
[1736934748782,3.33474405,3201.2,3201.1,0.31249]
[1736934748997,3.2078,3201.4,3200.9,3.2078]
[1736934749195,3.33474405,3201.3,3201.2,0.31249]
[1736934749391,3.2078,3201.4,3200.9,3.2078]
[1736934749696,3.2078,3201.4,3201.3,0.31248]
[1736934750286,3.2078,3201.4,3201.3,41.11248]
[1736934750690,3.93583351,3202.2,3201.3,41.11248]
[1736934750890,0.3124,3202.1,3201.9,0.31241]
[1736934751092,0.31242,3202.0,3201.7,0.31243]
[1736934751292,3.61357267,3202.1,3201.4,4.1532]
[1736934751501,3.30117267,3201.9,3201.8,0.31242]
[1736934751696,3.30117267,3202.0,3201.8,0.31242]
[1736934751999,3.61089959,3202.1,3201.4,4.1532]
[1736934752296,0.3124,3202.1,3201.4,4.1532]
[1736934752496,0.31246,3201.5,3201.3,40.8]
[1736934752689,0.31251,3201.0,3200.6,0.31254]
[1736934752890,0.31251,3201.0,3200.5,4.1432]
[1736934752891,3.2078,3201.0,3200.5,0.9354]
[1736934753090,3.25878239,3200.9,3200.5,0.9354]
[1736934753294,0.31255,3200.6,3200.5,0.9354]
[1736934753488,0.31255,3200.6,3200.5,0.4687]
[1736934753692,0.31256,3200.5,3200.2,40.8]
[1736934753893,0.31256,3200.5,3200.3,0.31257]
[1736934754090,0.31256,3200.5,3200.2,41.11258]
[1736934754298,0.31257,3200.4,3200.2,40.8]
[1736934754599,2.99243351,3200.8,3200.2,40.8]
[1736934754791,3.32309925,3200.7,3200.2,40.8]
[1736934754992,0.31257,3200.3,3200.2,40.8]
[1736934755392,0.31256,3200.5,3200.2,41.11258]
[1736934755598,3.51634957,3200.7,3200.2,40.8]